fUSD/lending_fUSD_20250923
["ID","MTS","AMOUNT","RATE_DAILY","PERIOD"]
[387137030,1758588727314,-530.0,0.00022737,2]
[387137031,1758588727324,-922.13,0.00022737,2]
[387137032,1758588727333,-400.0,0.00022737,2]
[387137033,1758588727342,-754.65,0.00022737,2]
[387137034,1758588727352,-400.0,0.00022737,2]
[387137035,1758588727362,-308.30580611,0.00022737,2]
[387137036,1758588727371,-400.0,0.00022737,2]
[387137037,1758588727381,-508.94,0.00022737,2]
[387137038,1758588727390,-400.0,0.00022737,2]
[387137039,1758588727400,-1169.65,0.00022737,2]
[387137040,1758588727409,-1903.352168,0.00022737,2]
[387137041,1758588727419,-400.0,0.00022738,2]
[387137042,1758588727429,-400.0,0.00022738,2]
[387137043,1758588727438,-400.0,0.00022738,2]
[387137044,1758588727447,-400.0,0.00022738,2]
[387137045,1758588727456,-400.0,0.00022738,2]
[387137046,1758588727465,-409.08361909,0.00022738,2]
[387137047,1758588727474,-400.0,0.00022738,2]
[387137048,1758588727484,-674.13,0.00022738,2]
[387137049,1758588727493,-400.0,0.00022738,2]
[387137050,1758588727503,-490.65,0.00022738,2]
[387137051,1758588727512,-500.0,0.00022738,2]
[387137052,1758588727522,-400.0,0.00022738,2]
[387137053,1758588727531,-410.63,0.00022738,2]
[387137054,1758588727540,-400.0,0.00022738,2]
[387137055,1758588727550,-750.91,0.00022738,2]
[387137056,1758588727559,-554.46,0.00022738,2]
[387137057,1758588727568,-544.47,0.00022738,2]
[387137058,1758588727578,-859.26,0.00022738,2]
[387137059,1758588727587,-400.0,0.00022738,2]
[387137060,1758588727598,-660.35,0.00022738,2]
[387137061,1758588727608,-410.37,0.00022738,2]
[387137062,1758588727618,-1016.77,0.00022738,2]
[387137063,1758588727627,-400.0,0.00022738,2]
[387137064,1758588727637,-400.0,0.00022738,2]
[387137065,1758588727647,-484.13,0.00022738,2]
[387137066,1758588727656,-682.51,0.00022738,2]
[387137067,1758588727666,-400.0,0.00022738,2]
[387137068,1758588727675,-588.84,0.00022738,2]
[387137069,1758588727686,-527.41,0.00022738,2]
[387137070,1758588727695,-769.14,0.00022738,2]
[387137071,1758588727705,-400.0,0.00022738,2]
[387137072,1758588727715,-400.0,0.00022738,2]
[387137073,1758588727725,-400.0,0.00022738,2]
[387137074,1758588727734,-450.01,0.00022738,2]
[387137075,1758588727743,-400.0,0.00022738,2]
[387137076,1758588727752,-400.0,0.00022738,2]
[387137077,1758588727761,-400.0,0.00022738,2]
[387137078,1758588727771,-495.05,0.00022738,2]
[387137079,1758588727780,-593.36,0.00022738,2]
[387137080,1758588727789,-445.15,0.00022738,2]
[387137081,1758588727799,-769.03,0.00022738,2]
[387137082,1758588727809,-537.23,0.00022738,2]
[387137083,1758588727818,-400.0,0.00022738,2]
[387137084,1758588727827,-400.0,0.00022738,2]
[387137085,1758588727836,-400.0,0.00022738,2]
[387137086,1758588727846,-400.0,0.00022738,2]
[387137087,1758588727855,-1440.81,0.00022738,2]
[387137088,1758588727864,-2249.616654,0.00022738,2]
[387137089,1758588727874,-400.0,0.00022738,2]
[387137090,1758588727884,-501.01,0.00022738,2]
[387137091,1758588727895,-493.6,0.00022738,2]
[387137092,1758588727905,-400.0,0.00022738,2]
[387137093,1758588727914,-969.65,0.00022738,2]
[387137094,1758588727924,-433.42,0.00022738,2]
[387137095,1758588727935,-577.66,0.00022738,2]
[387137096,1758588727944,-803.42,0.00022738,2]
[387137097,1758588727959,-651.06,0.00022738,2]
[387137098,1758588727969,-400.0,0.00022738,2]
[387137099,1758588727978,-414.87,0.00022738,2]
[387137100,1758588727988,-602.08,0.00022738,2]
[387137101,1758588727998,-400.0,0.00022738,2]
[387137102,1758588728008,-400.0,0.00022738,2]
[387137103,1758588728018,-697.68,0.00022738,2]
[387137104,1758588728027,-1169.47,0.00022738,2]
[387137105,1758588728037,-400.0,0.00022738,2]
[387137106,1758588728047,-514.36,0.00022738,2]
[387137107,1758588728057,-440.26,0.00022738,2]
[387137108,1758588728066,-593.88,0.00022738,2]
[387137109,1758588728075,-1060.97,0.00022738,2]
[387137110,1758588728085,-743.55,0.00022738,2]
[387137111,1758588728094,-620.51,0.00022738,2]
[387137112,1758588728108,-400.0,0.00022738,2]
[387137113,1758588728118,-695.32,0.00022738,2]
[387137114,1758588728128,-447.81,0.00022738,2]
[387137115,1758588728138,-909.99,0.00022738,2]
[387137116,1758588728147,-400.0,0.00022738,2]
[387137117,1758588728157,-400.0,0.00022738,2]
[387137118,1758588728167,-609.54,0.00022738,2]
[387137119,1758588728176,-400.0,0.00022738,2]
[387137120,1758588728190,-503.16,0.00022738,2]
[387137121,1758588728211,-652.42,0.00022738,2]
[387137122,1758588728221,-1926.15,0.00022738,2]
[387137123,1758588728230,-808.98,0.00022738,2]
[387137124,1758588728240,-997.93,0.00022738,2]
[387137125,1758588728249,-2763.9,0.00022738,2]
[387137126,1758588728258,-822.69,0.00022738,2]
[387137127,1758588728267,-1231.62,0.00022738,2]
[387137128,1758588728277,-435.88,0.00022738,2]
[387137129,1758588728286,-400.0,0.00022738,2]
[387137130,1758588728295,-1881.3,0.00022738,2]
[387137131,1758588728304,-400.0,0.00022738,2]
[387137132,1758588728314,-1082.02,0.00022738,2]
[387137133,1758588728323,-703.54,0.00022738,2]
[387137134,1758588728332,-471.61,0.00022738,2]
[387137135,1758588728341,-698.95,0.00022738,2]
[387137136,1758588728350,-422.43,0.00022738,2]
[387137137,1758588728359,-665.52,0.00022738,2]
[387137138,1758588728368,-1517.07,0.00022738,2]
[387137139,1758588728377,-1290.57,0.00022738,2]
[387137140,1758588728386,-599.8,0.00022738,2]
[387137141,1758588728396,-864.51,0.00022738,2]
[387137142,1758588728405,-700.22,0.00022738,2]
[387137143,1758588728414,-578.19,0.00022738,2]
[387137144,1758588728423,-1270.12,0.00022738,2]
[387137145,1758588728433,-529.42,0.00022738,2]
[387137146,1758588728442,-790.42,0.00022738,2]
[387137147,1758588728452,-546.07,0.00022738,2]
[387137148,1758588728461,-796.17,0.00022738,2]
[387137149,1758588728470,-1797.38,0.00022738,2]
[387137150,1758588728479,-1179.29,0.00022738,2]
[387137151,1758588728489,-1067.68,0.00022738,2]
[387137152,1758588728498,-685.94,0.00022738,2]
[387137153,1758588728507,-400.0,0.00022738,2]
[387137154,1758588728517,-400.0,0.00022738,2]
[387137155,1758588728525,-4410.79,0.00022738,2]
[387137156,1758588728535,-400.0,0.00022738,2]
[387137157,1758588728546,-400.0,0.00022738,2]
[387137158,1758588728555,-635.32,0.00022738,2]
[387137159,1758588728564,-825.39,0.00022738,2]
[387137160,1758588728574,-1159.17,0.00022738,2]
[387137161,1758588728583,-3621.17,0.00022738,2]
[387137162,1758588728593,-536.01,0.00022738,2]
[387137163,1758588728602,-1555.92,0.00022738,2]
[387137164,1758588728612,-685.82,0.00022738,2]
[387137165,1758588728621,-400.0,0.00022738,2]
[387137166,1758588728631,-1688.59,0.00022738,2]
[387137167,1758588728640,-533.54,0.00022738,2]
[387137168,1758588728648,-3199.7,0.00022738,2]
[387137169,1758588728658,-400.0,0.00022738,2]
[387137170,1758588728668,-5083.46,0.00022738,2]
[387137171,1758588728678,-726.03,0.00022738,2]
[387137172,1758588728690,-532.7,0.00022738,2]
[387137173,1758588728700,-1692.11,0.00022738,2]
[387137174,1758588728709,-633.11,0.00022738,2]
[387137175,1758588728719,-411.61,0.00022738,2]
[387137176,1758588728729,-648.3,0.00022738,2]
[387137177,1758588728738,-857.03,0.00022738,2]
[387137178,1758588728748,-722.01,0.00022738,2]
[387137179,1758588728758,-1108.24,0.00022738,2]
[387137180,1758588728768,-464.86,0.00022738,2]
[387137181,1758588728778,-2367.09,0.00022738,2]
[387137182,1758588728787,-400.0,0.00022738,2]
[387137183,1758588728797,-1636.84,0.00022738,2]
[387137184,1758588728807,-2136.91,0.00022738,2]
[387137185,1758588728818,-555.5,0.00022738,2]
[387137186,1758588728827,-914.0,0.00022738,2]
[387137187,1758588728836,-887.03,0.00022738,2]
[387137188,1758588728847,-4785.63,0.00022738,2]
[387137189,1758588728856,-1767.45,0.00022738,2]
[387137190,1758588728866,-1514.68,0.00022738,2]
[387137191,1758588728876,-553.9,0.00022738,2]
[387137192,1758588728885,-644.46,0.00022738,2]
[387137193,1758588728895,-434.59,0.00022738,2]
[387137194,1758588728904,-1093.45,0.00022738,2]
[387137195,1758588728914,-400.0,0.00022738,2]
[387137196,1758588728923,-2259.45,0.00022738,2]
[387137197,1758588728933,-1283.49,0.00022738,2]
[387137198,1758588728943,-1392.04,0.00022738,2]
[387137199,1758588728952,-579.07,0.00022738,2]
[387137200,1758588728962,-337.60268349,0.00022738,2]
[387137201,1758588728971,-400.0,0.00022738,2]
[387137202,1758588728981,-586.63,0.00022738,2]
[387137203,1758588728991,-852.34,0.00022738,2]
[387137204,1758588729000,-400.0,0.00022738,2]
[387137205,1758588729010,-602.29,0.00022738,2]
[387137206,1758588729019,-2120.46,0.00022738,2]
[387137207,1758588729029,-400.0,0.00022738,2]
[387137208,1758588729038,-730.17,0.00022738,2]
[387137209,1758588729048,-713.11,0.00022738,2]
[387137210,1758588729057,-479.48,0.00022738,2]
[387137211,1758588729066,-824.24,0.00022738,2]
[387137212,1758588729076,-2178.93,0.00022738,2]
[387137213,1758588729085,-563.68,0.00022738,2]
[387137214,1758588729095,-400.0,0.00022738,2]
[387137215,1758588729108,-624.27,0.00022738,2]
[387137216,1758588729118,-1279.8,0.00022738,2]
[387137217,1758588729127,-400.0,0.00022738,2]
[387137218,1758588729136,-400.0,0.00022739,2]
[387137219,1758588729146,-400.0,0.00022739,2]
[387137220,1758588729156,-400.0,0.00022739,2]
[387137221,1758588729165,-542.43,0.00022739,2]
[387137222,1758588729174,-400.0,0.00022739,2]
[387137223,1758588729184,-400.0,0.00022739,2]
[387137224,1758588729194,-400.0,0.00022739,2]
[387137225,1758588729204,-400.0,0.00022739,2]
[387137226,1758588729214,-400.0,0.00022739,2]
[387137227,1758588729223,-555.17,0.00022739,2]
[387137228,1758588729232,-491.16,0.00022739,2]
[387137229,1758588729242,-400.0,0.00022739,2]
[387137230,1758588729251,-400.0,0.00022739,2]
[387137231,1758588729261,-400.0,0.00022739,2]
[387137232,1758588729270,-416.06,0.00022739,2]
[387137233,1758588729279,-439.92,0.00022739,2]
[387137234,1758588729289,-400.0,0.00022739,2]
[387137235,1758588729299,-289.32,0.00022739,2]
[387137236,1758588729309,-428.44,0.00022739,2]
[387137237,1758588729318,-400.0,0.00022739,2]
[387137238,1758588729328,-400.0,0.00022739,2]
[387137239,1758588729337,-400.0,0.00022739,2]
[387137240,1758588729346,-400.0,0.00022739,2]
[387137241,1758588729356,-249.94,0.00022739,2]
[387137242,1758588729365,-166.96,0.00022739,2]
[387137243,1758588729375,-400.0,0.00022739,2]
[387137244,1758588729384,-754.63,0.00022739,2]
[387137245,1758588729395,-403.38,0.00022739,2]
[387137246,1758588729406,-917.82,0.00022739,2]
[387137247,1758588729418,-400.0,0.00022739,2]
[387137248,1758588729428,-504.07,0.00022739,2]
[387137249,1758588729438,-535.33,0.00022739,2]
[387137250,1758588729448,-414.45,0.00022739,2]
[387137251,1758588729457,-597.93,0.00022739,2]
[387137252,1758588729466,-400.0,0.00022739,2]
[387137253,1758588729475,-599.79,0.00022739,2]
[387137254,1758588729485,-512.84,0.00022739,2]
[387137255,1758588729494,-400.0,0.00022739,2]
[387137256,1758588729503,-830.32,0.00022739,2]
[387137257,1758588729513,-490.64,0.00022739,2]
[387137258,1758588729522,-400.0,0.00022739,2]
[387137259,1758588729532,-400.0,0.00022739,2]
[387137260,1758588729541,-400.0,0.00022739,2]
[387137261,1758588729551,-877.74,0.00022739,2]
[387137262,1758588729561,-454.04,0.00022739,2]
[387137263,1758588729570,-944.31,0.00022739,2]
[387137264,1758588729579,-400.0,0.00022739,2]
[387137265,1758588729589,-866.7,0.00022739,2]
[387137266,1758588729599,-400.0,0.00022739,2]
[387137267,1758588729608,-983.28,0.00022739,2]
[387137268,1758588729619,-400.0,0.00022739,2]
[387137269,1758588729628,-722.94,0.00022739,2]
[387137270,1758588729638,-400.0,0.00022739,2]
[387137271,1758588729647,-542.91,0.00022739,2]
[387137272,1758588729657,-400.0,0.00022739,2]
[387137273,1758588729666,-559.02,0.00022739,2]
[387137274,1758588729676,-531.68,0.00022739,2]
[387137275,1758588729685,-400.0,0.00022739,2]
[387137276,1758588729694,-682.63,0.00022739,2]
[387137277,1758588729705,-400.0,0.00022739,2]
[387137278,1758588729714,-461.64,0.00022739,2]
[387137279,1758588729724,-400.0,0.00022739,2]
[387137280,1758588729734,-671.51,0.00022739,2]
[387137281,1758588729744,-404.72,0.00022739,2]
[387137282,1758588729753,-607.71,0.00022739,2]
[387137283,1758588729762,-400.0,0.00022739,2]
[387137284,1758588729772,-400.0,0.00022739,2]
[387137285,1758588729781,-421.51,0.00022739,2]
[387137286,1758588729790,-965.94,0.00022739,2]
[387137287,1758588729800,-596.18,0.00022739,2]
[387137288,1758588729810,-400.0,0.00022739,2]
[387137289,1758588729819,-400.0,0.00022739,2]
[387137290,1758588729829,-417.6,0.00022739,2]
[387137291,1758588729839,-779.83,0.00022739,2]
[387137292,1758588729849,-400.0,0.00022739,2]
[387137293,1758588729858,-400.0,0.00022739,2]
[387137294,1758588729868,-527.47763257,0.00022739,2]
[387137295,1758588729877,-720.23,0.00022739,2]
[387137296,1758588729887,-400.0,0.00022739,2]
[387137297,1758588729897,-432.08,0.00022739,2]
[387137298,1758588729906,-926.5,0.00022739,2]
[387137299,1758588729915,-400.0,0.00022739,2]
[387137300,1758588729925,-453.42,0.00022739,2]
[387137301,1758588729935,-400.0,0.00022739,2]
[387137302,1758588729945,-499.27,0.00022739,2]
[387137303,1758588729954,-415.36,0.00022739,2]
[387137304,1758588729964,-400.0,0.00022739,2]
[387137305,1758588729973,-1064.17,0.00022739,2]
[387137306,1758588729982,-400.0,0.00022739,2]
[387137307,1758588729993,-400.0,0.00022739,2]
[387137308,1758588730002,-400.0,0.00022739,2]
[387137309,1758588730013,-428.67,0.00022739,2]
[387137310,1758588730023,-427.84,0.00022739,2]
[387137311,1758588730032,-400.0,0.00022739,2]
[387137312,1758588730043,-400.0,0.00022739,2]
[387137313,1758588730056,-715.39,0.00022739,2]
[387137314,1758588730066,-515.86,0.00022739,2]
[387137315,1758588730076,-400.0,0.00022739,2]
[387137316,1758588730086,-400.0,0.00022739,2]
[387137317,1758588730095,-1049.53,0.00022739,2]
[387137318,1758588730108,-400.0,0.00022739,2]
[387137319,1758588730118,-400.1,0.00022739,2]
[387137320,1758588730127,-400.0,0.00022739,2]
[387137321,1758588730137,-669.85,0.00022739,2]
[387137322,1758588730146,-524.43,0.00022739,2]
[387137323,1758588730157,-480.73,0.00022739,2]
[387137324,1758588730172,-418.66,0.00022739,2]
[387137325,1758588730182,-400.0,0.00022739,2]
[387137326,1758588730192,-645.11,0.00022739,2]
[387137327,1758588730202,-521.7,0.00022739,2]
[387137328,1758588730212,-3259.34,0.00022739,2]
[387137329,1758588730222,-400.0,0.00022739,2]
[387137330,1758588730231,-400.0,0.00022739,2]
[387137331,1758588730241,-819.08,0.00022739,2]
[387137332,1758588730251,-400.0,0.00022739,2]
[387137333,1758588730260,-527.41,0.00022739,2]
[387137334,1758588730270,-711.41,0.00022739,2]
[387137335,1758588730280,-400.0,0.00022739,2]
[387137336,1758588730290,-707.11,0.00022739,2]
[387137337,1758588730299,-4823.52,0.00022739,2]
[387137338,1758588730309,-1811.93,0.00022739,2]
[387137339,1758588730318,-658.31,0.00022739,2]
[387137340,1758588730328,-1161.68,0.00022739,2]
[387137341,1758588730337,-751.69,0.00022739,2]
[387137342,1758588730348,-532.84,0.00022739,2]
[387137343,1758588730357,-760.3,0.00022739,2]
[387137344,1758588730367,-427.52,0.00022739,2]
[387137345,1758588730376,-400.0,0.00022739,2]
[387137346,1758588730386,-450.15,0.00022739,2]
[387137347,1758588730396,-500.42,0.00022739,2]
[387137348,1758588730406,-535.91,0.00022739,2]
[387137349,1758588730416,-440.64,0.00022739,2]
[387137350,1758588730426,-839.22,0.00022739,2]
[387137351,1758588730436,-1017.53,0.00022739,2]
[387137352,1758588730445,-400.0,0.00022739,2]
[387137353,1758588730455,-9183.84,0.00022739,2]
[387137354,1758588730467,-400.0,0.00022739,2]
[387137355,1758588730478,-400.0,0.00022739,2]
[387137356,1758588730491,-451.23,0.00022739,2]
[387137357,1758588730503,-400.0,0.00022739,2]
[387137358,1758588730513,-894.16,0.00022739,2]
[387137359,1758588730526,-683.2,0.00022739,2]
[387137360,1758588730537,-1123.88,0.00022739,2]
[387137361,1758588730546,-406.45,0.00022739,2]
[387137362,1758588730556,-1005.19,0.00022739,2]
[387137363,1758588730566,-808.52,0.00022739,2]
[387137364,1758588730576,-1110.73,0.00022739,2]
[387137365,1758588730586,-400.0,0.00022739,2]
[387137366,1758588730595,-1205.76,0.00022739,2]
[387137367,1758588730605,-400.0,0.00022739,2]
[387137368,1758588730615,-741.22,0.00022739,2]
[387137369,1758588730625,-200.0,0.00022772,2]
[387137370,1758588730634,-174.54391,0.0002278,2]
[387137371,1758588730644,-1714.1544707,0.00022795,2]
[387137372,1758588730654,-1425.0,0.00022837,2]
[387137373,1758588730664,-150.0,0.0002285,2]
[387137374,1758588730675,-356.5,0.00022865,2]
[387137375,1758588730685,-1442.65435151,0.00022876,2]
[387137376,1758588730696,-150.0,0.00022887,2]
[387137377,1758588730706,-1425.0,0.0002294,2]
[387137378,1758588730716,-500.0,0.00022958,2]
[387137379,1758588730727,-500.0,0.00022958,2]
[387137380,1758588730738,-500.0,0.00022958,2]
[387137381,1758588730748,-500.0,0.00022958,2]
[387137382,1758588730760,-431.59,0.00022958,2]
[387137383,1758588730770,-1425.0,0.00022962,2]
[387137384,1758588730780,-1000.0,0.00022986,2]
[387137385,1758588730791,-267.46074303,0.00023,2]
[387137386,1758588730988,-346.92554585,0.00023,2]
[387137387,1758588730998,-500.0,0.00023,7]
[387137388,1758588731009,-500.0,0.00023,7]
[387137389,1758588731018,-500.0,0.00023,7]
[387137390,1758588731027,-500.0,0.00023,7]
[387137391,1758588731036,-323.02,0.00023,7]
[387137392,1758588731046,-500.0,0.00023,7]
[387137393,1758588731055,-500.0,0.00023,7]
[387137394,1758588731064,-500.0,0.00023,7]
[387137395,1758588731073,-500.0,0.00023,7]
[387137396,1758588731082,-3390.52416487,0.00023,2]
[387137397,1758588731091,-432.70438105,0.00023,2]
[387137398,1758588731101,-991.22980649,0.00023,2]
[387137399,1758588731116,-283.0,0.00023,2]
[387137400,1758588731125,-516.58280827,0.00023,7]
[387137401,1758588731135,-616.0,0.00023,7]
[387137402,1758588731144,-670.58624095,0.00023001,2]
[387137403,1758588731155,-400.0,0.00023006,2]
[387137404,1758588731164,-500.0,0.00023007,2]
[387137405,1758588731174,-150.0,0.00023007,2]
[387137406,1758588731185,-150.0,0.00023007,2]
[387137407,1758588731194,-500.0,0.00023007,2]
[387137408,1758588731204,-1741.0,0.00023007,2]
[387137409,1758588731213,-496.0,0.00023007,2]
[387137410,1758588731222,-500.0,0.00023007,2]
[387137411,1758588731231,-539.0,0.00023007,2]
[387137412,1758588731241,-400.0,0.00023007,2]
[387137413,1758588731250,-553.8,0.00023007,2]
[387137414,1758588731259,-462.99,0.00023007,2]
[387137415,1758588731270,-400.0,0.00023007,2]
[387137416,1758588731279,-400.0,0.00023007,2]
[387137417,1758588731288,-739.8,0.00023007,2]
[387137418,1758588731298,-631.13,0.00023007,2]
[387137419,1758588731310,-400.0,0.00023007,2]
[387137420,1758588731321,-400.0,0.00023007,2]
[387137421,1758588731331,-400.0,0.00023007,2]
[387137422,1758588731343,-400.0,0.00023007,2]
[387137423,1758588731352,-400.0,0.00023007,2]
[387137424,1758588731362,-455.09,0.00023007,2]
[387137425,1758588731372,-400.0,0.0002301,2]
[387137426,1758588731382,-445.49,0.00023011,2]
[387137427,1758588731395,-433.86,0.00023011,2]
[387137428,1758588731405,-400.0,0.00023011,2]
[387137429,1758588731414,-400.0,0.00023011,2]
[387137430,1758588731425,-400.0,0.00023011,2]
[387137431,1758588731435,-400.0,0.00023011,2]
[387137432,1758588731444,-400.0,0.00023011,2]
[387137433,1758588731455,-417.58,0.00023011,2]
[387137434,1758588731464,-514.34,0.00023011,2]
[387137435,1758588731474,-400.0,0.00023011,2]
[387137436,1758588731484,-400.0,0.00023011,2]
[387137437,1758588731494,-400.0,0.00023011,2]
[387137438,1758588731504,-400.0,0.00023011,2]
[387137439,1758588731514,-400.0,0.00023011,2]
[387137440,1758588731524,-729.73,0.00023011,2]
[387137441,1758588731533,-400.0,0.00023011,2]
[387137442,1758588731543,-1262.42,0.00023011,2]
[387137443,1758588731553,-400.0,0.00023011,2]
[387137444,1758588731563,-402.51,0.00023011,2]
[387137445,1758588731572,-479.3,0.00023011,2]
[387137446,1758588731582,-796.01,0.00023011,2]
[387137447,1758588731591,-431.35,0.00023011,2]
[387137448,1758588731601,-2335.81,0.00023011,2]
[387137449,1758588731611,-254.48,0.00023011,2]
[387137450,1758588731620,-1029.46,0.00023011,2]
[387137451,1758588731630,-465.65,0.00023011,2]
[387137452,1758588731641,-400.0,0.00023011,2]
[387137453,1758588731651,-1832.67,0.00023011,2]
[387137454,1758588731661,-1616.25,0.00023011,2]
[387137455,1758588731671,-400.0,0.00023011,2]
[387137456,1758588731682,-400.0,0.00023011,2]
[387137457,1758588731693,-836.01,0.00023011,2]
[387137458,1758588731703,-400.0,0.00023011,2]
[387137459,1758588731713,-400.0,0.00023011,2]
[387137460,1758588731723,-400.0,0.00023011,2]
[387137461,1758588731733,-400.0,0.00023011,2]
[387137462,1758588731742,-1061.09,0.00023011,2]
[387137463,1758588731752,-522.0,0.00023011,2]
[387137464,1758588731761,-400.0,0.00023011,2]
[387137465,1758588731771,-3384.62,0.00023011,2]
[387137466,1758588731781,-2060.76,0.00023011,2]
[387137467,1758588731791,-530.11,0.00023011,2]
[387137468,1758588731800,-530.0,0.00023011,2]
[387137469,1758588731811,-922.13,0.00023011,2]
[387137470,1758588731821,-400.0,0.00023011,2]
[387137471,1758588731831,-754.65,0.00023011,2]
[387137472,1758588731840,-284.95,0.00023011,2]
[387137473,1758588731849,-400.0,0.00023011,2]
[387137474,1758588731859,-508.94,0.00023011,2]
[387137475,1758588731869,-400.0,0.00023011,2]
[387137476,1758588731879,-1169.65,0.00023011,2]
[387137477,1758588731888,-1903.352168,0.00023011,2]
[387137478,1758588731898,-349.31,0.00023012,2]
[387137479,1758588731907,-400.0,0.00023012,2]
[387137480,1758588731916,-186.34,0.00023012,2]
[387137481,1758588731926,-189.18,0.00023012,2]
[387137482,1758588731936,-400.0,0.00023012,2]
[387137483,1758588731945,-400.0,0.00023012,2]
[387137484,1758588731955,-400.0,0.00023012,2]
[387137485,1758588731964,-674.13,0.00023012,2]
[387137486,1758588731974,-400.0,0.00023012,2]
[387137487,1758588731984,-490.65,0.00023012,2]
[387137488,1758588731994,-400.0,0.00023012,2]
[387137489,1758588732006,-410.63,0.00023012,2]
[387137490,1758588732017,-400.0,0.00023012,2]
[387137491,1758588732028,-750.91,0.00023012,2]
[387137492,1758588732038,-554.46,0.00023012,2]
[387137493,1758588732048,-544.47,0.00023012,2]
[387137494,1758588732059,-859.26,0.00023012,2]
[387137495,1758588732069,-400.0,0.00023012,2]
[387137496,1758588732079,-660.35,0.00023012,2]
[387137497,1758588732090,-410.37,0.00023012,2]
[387137498,1758588732101,-1016.77,0.00023012,2]
[387137499,1758588732114,-400.0,0.00023012,2]
[387137500,1758588732127,-330.02302452,0.00023012,2]
[387137501,1758588732138,-484.13,0.00023012,2]
[387137502,1758588732148,-682.51,0.00023012,2]
[387137503,1758588732156,-400.0,0.00023012,2]
[387137504,1758588732166,-588.84,0.00023012,2]
[387137505,1758588732175,-527.41,0.00023012,2]
[387137506,1758588732184,-769.14,0.00023012,2]
[387137507,1758588732194,-400.0,0.00023012,2]
[387137508,1758588732203,-241.5,0.00023012,2]
[387137509,1758588732212,-400.0,0.00023012,2]
[387137510,1758588732221,-450.01,0.00023012,2]
[387137511,1758588732230,-539.75890666,0.00023012,2]
[387137512,1758588732239,-400.0,0.00023012,2]
[387137513,1758588732249,-400.0,0.00023012,2]
[387137514,1758588732258,-495.05,0.00023012,2]
[387137515,1758588732267,-593.36,0.00023012,2]
[387137516,1758588732276,-445.15,0.00023012,2]
[387137517,1758588732285,-769.03,0.00023012,2]
[387137518,1758588732294,-537.23,0.00023012,2]
[387137519,1758588732304,-400.0,0.00023012,2]
[387137520,1758588732313,-400.0,0.00023012,2]
[387137521,1758588732323,-400.0,0.00023012,2]
[387137522,1758588732332,-524.1,0.00023012,2]
[387137523,1758588732341,-1440.81,0.00023012,2]
[387137524,1758588732350,-2249.616654,0.00023012,2]
[387137525,1758588732359,-400.0,0.00023012,2]
[387137526,1758588732368,-501.01,0.00023012,2]
[387137527,1758588732378,-493.6,0.00023012,2]
[387137528,1758588732387,-400.0,0.00023012,2]
[387137529,1758588732397,-969.65,0.00023012,2]